{"text_format":"1","workbook":"xlsx","n_sheets":2,"sheets":["Spring","Background"],"not_rendered":{"charts":0,"images":2,"macros":1,"external_links":0,"defined_names":0,"comments":0,"pivot_tables":0},"unopened":[],"bounds":{"document_bytes":16777216,"sheet_cells":100000,"rows_first":2000,"rows_last":500,"rows_between":2000,"halvings":0,"cell_chars":16384,"cell_head_chars":4096},"cells_cut":0,"cells_raw":0,"read":"whole","date_system":"1900"}

{"sheet":"Spring","index":0,"n_rows":32,"n_cols":27,"rows_kept":32,"cut":false,"hidden":false,"merged":[[21,1,21,2],[23,11,23,12],[26,1,26,10],[26,11,26,13],[27,1,27,10],[27,11,27,13],[21,4,21,5],[21,6,21,10],[22,8,22,9],[23,5,23,6],[23,7,23,8],[23,9,23,10],[18,0,18,14],[19,0,19,14],[20,1,20,2],[20,4,20,6],[20,8,20,10],[20,12,20,14],[7,1,7,14],[11,1,11,14],[15,0,15,5],[15,8,15,13],[16,0,16,5],[16,8,16,13],[4,0,4,6],[4,8,4,11],[4,13,4,14],[5,0,5,6],[5,8,5,11],[5,13,5,14],[0,0,0,14],[1,0,1,6],[1,8,1,11],[1,13,1,14],[2,0,2,6],[2,8,2,11],[2,13,2,14],[30,0,30,14],[0,16,0,29],[1,16,1,29],[3,17,4,29],[6,17,7,29],[9,17,10,29],[12,17,13,29],[14,17,14,18],[14,19,14,20],[14,21,14,22],[14,23,14,24],[14,25,14,26],[15,17,15,18],[15,19,15,20],[15,21,15,22],[15,23,15,24],[15,25,15,26],[16,19,16,20],[16,21,16,22],[16,23,16,24],[16,25,16,26],[17,19,17,20],[17,21,17,22],[17,23,17,24],[17,25,17,26],[18,17,18,18],[18,19,18,20],[18,21,18,22],[18,23,18,24],[18,25,18,26],[19,19,19,20],[19,21,19,22],[19,23,19,24],[19,25,19,26],[21,17,22,29],[24,17,24,18],[24,19,24,21],[24,24,24,25],[24,26,24,28],[25,17,25,18],[25,19,25,21],[25,24,25,25],[25,26,25,28],[26,17,26,18],[26,19,26,21],[26,24,26,25],[26,26,26,28],[27,17,27,18],[27,19,27,21],[27,24,27,25],[27,26,27,28],[31,16,31,29],[28,17,28,18],[28,19,28,21],[28,24,28,25],[28,26,28,28],[29,17,29,18],[29,19,29,21],[29,24,29,25],[29,26,29,28]]}
["Middle School Coaches Pay Sheet",null,null,null,null,null,null,null,null,null,null,null,null,null,null,null,"Middle School Coaches Pay Sheet"]
["Name of Employee",null,null,null,null,null,null,null,"Employee ID#",null,null,null,null,"Phone Number",null,null,"2024-2025 Academic Year"]
[]
[null,null,null,null,null,null,null,null,null,null,null,null,null,null,null,null,"1.)","Required Hiring Paperwork/Spreadsheet - All paid Middle School Coaches are required to be listed on the hiring spreadsheet, complete an online application, and submit the required hiring paperwork to the Youth Sports Office at least three (3) weeks prior to the start of the season for processing. "]
["Email Address",null,null,null,null,null,null,null,"School",null,null,null,null,"Grade Level"]
[]
[null,null,null,null,null,null,null,null,null,null,null,null,null,null,null,null,"2.)","Signatures - The coach pay sheet must be signed off by the Coach and Sports Coordinator or Principal. If a signature is missing, the pay sheet will be returned to the school and pay will be delayed. Digital signatures are acceptable. "]
["Team #1","Select Current Season Here"]
["SUN\n05/11","MON\n05/12","TUE\n05/13","WED\n05/14","THU\n05/15","FRI\n05/16","SAT\n05/17","SUN \n05/18","MON\n05/19","TUE\n05/20","WED\n05/21","THU\n05/22","FRI\n05/23","SAT\n05/24","TOTAL"]
[{"$f":"0","v":0},{"$f":"IF(OR(B8=Background!A1,B8=Background!A2,B8=Background!A3),2,IF(B8=Background!A4,4,0))","v":0},{"$f":"IF(OR(B8=Background!A1,B8=Background!A2,B8=Background!A3),2,IF(B8=Background!A4,4,0))","v":0},{"$f":"IF(OR(B8=Background!A1,B8=Background!A2,B8=Background!A3),2,IF(B8=Background!A4,4,0))","v":0},{"$f":"IF(OR(B8=Background!A1,B8=Background!A2,B8=Background!A3),2,IF(B8=Background!A4,4,0))","v":0},{"$f":"0","v":0},{"$f":"IF(OR(B8=Background!A1,B8=Background!A2,B8=Background!A3),5,IF(B8=Background!A4,4,0))","v":0},{"$f":"0","v":0},{"$f":"IF(OR(B8=Background!A1,B8=Background!A2,B8=Background!A3),2,IF(B8=Background!A4,4,0))","v":0},{"$f":"IF(OR(B8=Background!A1,B8=Background!A2,B8=Background!A3),2,IF(B8=Background!A4,4,0))","v":0},{"$f":"IF(OR(B8=Background!A1,B8=Background!A2,B8=Background!A3),2,IF(B8=Background!A4,4,0))","v":0},{"$f":"IF(OR(B8=Background!A1,B8=Background!A2,B8=Background!A3),2,IF(B8=Background!A4,4,0))","v":0},{"$f":"0","v":0},{"$f":"IF(OR(B8=Background!A1,B8=Background!A2,B8=Background!A3),4,IF(B8=Background!A4,4,0))","v":0},{"$f":"SUM(A10:N10)","v":0},null,"3.)","Pay Rates - Middle School Coaches are paid for 2 hours of practice, 1 hour for games/meets/matches per week, per team (Exception: XC and Track & Field - See Meeting Power Point for coaching hour allocation and additional info). The form has build in formulas that cannot be changed. Do not alter pay sheet form by adding any boxes, changing dates, or number of hours. "]
[]
["Team #2","Select Current Season Here"]
["SUN\n05/11","MON\n05/12","TUE\n05/13","WED\n05/14","THU\n05/15","FRI\n05/16","SAT\n05/17","SUN \n05/18","MON\n05/19","TUE\n05/20","WED\n05/21","THU\n05/22","FRI\n05/23","SAT\n05/24","TOTAL",null,"4.)","Coach Pay Sheet Deadlines - See the chart below for due date and payment dates. Pay sheets submitted after the deadline will be processed the following pay period. "]
[{"$f":"0","v":0},{"$f":"IF(OR(B12=Background!A1,B12=Background!A2,B12=Background!A3),2,IF(B12=Background!A4,4,0))","v":0},{"$f":"IF(OR(B12=Background!A1,B12=Background!A2,B12=Background!A3),2,IF(B12=Background!A4,4,0))","v":0},{"$f":"IF(OR(B12=Background!A1,B12=Background!A2,B12=Background!A3),2,IF(B12=Background!A4,4,0))","v":0},{"$f":"IF(OR(B12=Background!A1,B12=Background!A2,B12=Background!A3),2,IF(B12=Background!A4,4,0))","v":0},{"$f":"0","v":0},{"$f":"IF(OR(B12=Background!A1,B12=Background!A2,B12=Background!A3),5,IF(B12=Background!A4,4,0))","v":0},{"$f":"0","v":0},{"$f":"IF(OR(B12=Background!A1,B12=Background!A2,B12=Background!A3),2,IF(B12=Background!A4,4,0))","v":0},{"$f":"IF(OR(B12=Background!A1,B12=Background!A2,B12=Background!A3),2,IF(B12=Background!A4,4,0))","v":0},{"$f":"IF(OR(B12=Background!A1,B12=Background!A2,B12=Background!A3),2,IF(B12=Background!A4,4,0))","v":0},{"$f":"IF(OR(B12=Background!A1,B12=Background!A2,B12=Background!A3),2,IF(B12=Background!A4,4,0))","v":0},{"$f":"0","v":0},{"$f":"IF(OR(B12=Background!A1,B12=Background!A2,B12=Background!A3),4,IF(B12=Background!A4,4,0))","v":0},{"$f":"SUM(A14:N14)","v":0}]
[null,null,null,null,null,null,null,null,null,null,null,null,null,null,null,null,null,"Season",null,"Pay Period",null,"Pay Sheet Due Date",null,"Tentive Pay Date",null,"Rate Per Hour"]
[null,null,null,null,null,null,null,null,null,null,null,null,null,null,null,null,null,"Fall Sports",null,1,null,"2024-10-23",null,"2024-11-08",null,15]
["EMPLOYEE SIGNATURE",null,null,null,null,null,"DATE",null,"SPORTS COORDINATOR OR PRINCIPAL SIGNATURE",null,null,null,null,null,"DATE",null,null,"Winter Sports (Part 1)",null,2,null,"2025-01-15",null,"2025-01-31",null,15]
[null,null,null,null,null,null,null,null,null,null,null,null,null,null,null,null,null,"Winter Sports (Part 2)",null,3,null,"2025-02-26",null,"2025-03-14",null,15]
["IMPORTANT, Must have Sports Coordinator and/or Principal signature, before sending to the Youth Sports Office for approval. Missing information",null,null,null,null,null,null,null,null,null,null,null,null,null,null,null,null,"Spring Sports",null,4,null,"2025-06-04",null,"2025-06-20",null,15]
["will delay payment, such as, but not limited to, missing parts to the application and background check.  Rejection of applicant voids this pay sheet."]
[null,"FOR OFFICE USE ONLY",null,null,"FOR OFFICE USE ONLY",null,null,null,"FOR OFFICE USE ONLY",null,null,null,"FOR OFFICE USE ONLY"]
[null,"RL:____________",null,null,"Date Range:",null,null,null,null,null,null,null,null,null,null,null,"5.) ","Each sport is budgeted for  a max number of paid hours per team. Paid hours for special events (such as March of Champion or Cheer and Dance Showcase ) are included in the max number of paid hours per sport. "]
[null,null,null,null,null,null,null,null,"Circle Season"]
[null,"RMS-0-0-PRC-",null,"-EWCH5401",null,"Fall",null,"Winter #1",null,"Winter #2",null,"Spring"]
[null,null,null,null,null,null,null,null,null,null,null,null,null,null,null,null,null,"Sport League",null,"Max Number of Paid Hours",null,null,null,null,"Sport League",null,"Max Number of Paid Hours"]
[null,null,null,null,null,null,null,null,null,null,null,null,null,null,null,null,null,"Flag Football",null,25,null,null,null,null,"Softball",null,25]
[null,null,null,null,null,null,null,null,null,null,null,null,null,null,null,null,null,"Cross Country",null,25,null,null,null,null,"Track & Field",null,40]
[null,"YOUTH SPORTS SUPERVISOR SIGNATURE",null,null,null,null,null,null,null,null,null,"DATE",null,null,null,null,null,"Volleyball",null,40,null,null,null,null,"Tennis",null,25]
[null,null,null,null,null,null,null,null,null,null,null,null,null,null,null,null,null,"Basketball",null,40,null,null,null,null,"Indoor Soccer",null,40]
[null,null,null,null,null,null,null,null,null,null,null,null,null,null,null,null,null,"Cheer",null,40,null,null,null,null,"Outdoor Soccer",null,25]
["All Pay Sheets must be submitted online at http://tinyurl.com/Paysheet-YS"]
[null,null,null,null,null,null,null,null,null,null,null,null,null,null,null,null,"All Pay Sheets must be submitted online at http://tinyurl.com/Paysheet-YS"]

{"sheet":"Background","index":1,"n_rows":9,"n_cols":1,"rows_kept":9,"cut":false,"hidden":true,"merged":[]}
["Spring Coed Softball / 25 Total Hours"]
["Spring Coed or Girls Soccer / 25 Total Hours"]
["Spring Coed Tennis / 25 Total Hours"]
["Spring Coed Track & Field / 40 Total Hours"]
["NO SPORTS/ TEAMS"]
["Select Current Season Here"]
[]
["5th-8th Grade"]
["6th-8th Grade"]